bitfinex/quotes_ETHUSD_20251125
["timestamp","ask_amount","ask_price","bid_price","bid_amount"]
[1764074672098,0.53500372,2932.9,2931.6,0.1]
[1764074672298,0.53500372,2932.9,2931.1,0.4814]
[1764074672299,0.1832,2931.7,2931.1,0.1]
[1764074672512,0.219,2931.6,2931.1,3.41166543]
[1764074672801,0.219,2931.6,2931.4,0.1]
[1764074673201,0.1832,2932.1,2931.4,0.1]
[1764074673399,0.219,2932.0,2931.7,0.1]
[1764074673986,0.4593,2931.9,2930.9,0.1]
[1764074674604,0.1832,2932.1,2930.9,0.4814]
[1764074674806,0.219,2931.8,2931.5,0.1]
[1764074675033,0.219,2931.8,2930.5,0.1889]
[1764074675190,0.6783,2931.8,2930.6,7.30692948]
[1764074675533,3.59372487,2932.1,2931.3,0.1]
[1764074675716,0.219,2932.0,2931.6,0.1]
[1764074675883,3.62972943,2932.0,2931.6,0.1]
[1764074676085,3.62972943,2932.0,2931.2,0.1]
[1764074676086,0.4698,2931.7,2931.2,0.1]
[1764074676389,3.62972943,2932.0,2931.5,0.1]
[1764074676622,0.4593,2931.9,2931.3,0.1]
[1764074676786,7.04045886,2932.0,2931.4,0.1]
[1764074676987,0.4593,2932.0,2931.4,0.1]
[1764074677187,0.219,2931.9,2931.4,0.1]
[1764074677415,0.219,2931.9,2931.2,0.1]
[1764074677656,0.4593,2931.8,2930.8,3.41203766]
[1764074677817,0.4593,2931.8,2931.1,0.1]
[1764074678022,3.41099021,2931.7,2931.1,0.1]
[1764074678200,3.87020903,2931.8,2931.1,0.2269]
[1764074678522,3.87020903,2931.8,2930.6,0.101]
[1764074678523,0.4706,2931.2,2930.6,0.101]
[1764074678712,0.219,2931.1,2930.6,0.101]
[1764074678911,10.23272709,2931.8,2930.9,0.1]
[1764074678912,0.219,2931.0,2930.9,0.1]
[1764074679491,0.219,2931.0,2930.9,0.5839]
[1764074679692,0.219,2931.0,2930.9,0.9653]
[1764074679885,0.4593,2932.0,2931.3,0.1]
[1764074680089,0.219,2931.9,2931.3,3.5114291]
[1764074680290,0.219,2931.9,2931.3,3.4114291]
[1764074680486,0.219,2931.9,2931.1,0.1889]
[1764074680487,0.219,2931.8,2931.5,0.1]
[1764074680932,0.6425,2932.1,2931.5,0.1]
[1764074681094,0.219,2932.0,2931.8,0.1]
[1764074681295,0.219,2932.0,2931.7,0.1]
[1764074681914,0.219,2931.9,2931.7,0.1]
[1764074682110,0.219,2931.9,2931.6,0.1]
[1764074682316,0.219,2931.9,2931.4,0.1]
[1764074682717,0.4593,2932.0,2931.4,0.1]
[1764074682911,0.219,2931.9,2931.4,0.1]
[1764074683329,0.4593,2931.8,2931.4,0.1]
[1764074683524,0.219,2931.9,2931.4,0.1]
[1764074684052,0.6783,2931.9,2931.4,3.51123568]
[1764074684355,0.6783,2931.9,2931.4,0.1]
[1764074684509,0.4593,2931.8,2931.0,3.41179232]
[1764074684714,0.4593,2931.8,2930.9,0.1]
[1764074685111,0.4593,2931.8,2930.8,0.001]
[1764074685339,0.31670272,2931.7,2930.8,3.413026]
[1764074685539,0.31670272,2931.7,2930.8,0.001]
[1764074685740,0.6538,2930.9,2930.8,0.001]
[1764074685943,0.8728,2930.9,2930.8,0.001]
[1764074686130,1.3321,2930.9,2930.8,0.001]
[1764074687619,1.3321,2930.9,2930.8,0.4849]
[1764074687620,0.219,2930.9,2930.8,0.4849]
[1764074687857,0.219,2930.9,2930.8,1.0663]
[1764074688218,1.1481,2930.9,2930.8,0.001]
[1764074688436,4.56002125,2930.9,2930.8,0.001]
[1764074688632,4.87693042,2930.9,2930.8,0.001]
[1764074688982,0.78750917,2930.9,2930.8,0.001]
[1764074689144,1.00650917,2930.9,2930.8,0.001]
[1764074689469,0.4593,2931.3,2930.8,0.001]
[1764074689772,0.1832,2931.6,2931.1,0.1]
[1764074689936,0.6783,2931.5,2931.1,0.1]
[1764074690338,0.31681923,2931.4,2931.1,3.51167808]
[1764074690549,0.31681923,2931.4,2930.8,0.001]
[1764074690774,0.81031923,2931.4,2930.8,3.51301926]
[1764074691076,0.4935,2931.4,2930.8,3.41302003]
[1764074691278,7.0416236,2931.5,2930.8,0.101]
[1764074691452,7.0416236,2931.5,2930.8,0.001]
[1764074691453,0.4367,2930.9,2930.8,0.001]
[1764074691648,0.6557,2930.9,2930.8,0.001]
[1764074692375,0.219,2930.9,2930.8,0.001]
[1764074692778,0.6557,2930.9,2930.8,0.001]
[1764074692985,0.6767,2931.6,2930.8,0.557]
[1764074693270,1.7552665,2931.5,2930.8,0.101]
[1764074693564,0.31717239,2931.4,2930.8,0.101]
[1764074693762,0.31717239,2931.3,2930.8,0.101]
[1764074693963,0.31717239,2931.2,2930.8,0.101]
[1764074694171,0.31717239,2931.1,2930.8,3.51295072]
[1764074694369,0.53661164,2931.0,2930.8,3.51295072]
[1764074694544,0.219,2931.0,2930.8,3.51295072]
[1764074694945,0.219,2931.0,2930.8,0.001]
[1764074695254,4.81350704,2931.6,2930.9,0.1]
[1764074695462,0.53670293,2931.5,2931.0,0.1]
[1764074695636,0.31770293,2931.4,2931.0,0.1]
[1764074695842,0.31770293,2931.3,2931.0,0.1]
[1764074696041,0.31770293,2931.2,2931.0,0.1]
[1764074696257,0.31770293,2931.1,2931.0,0.1]
[1764074696648,0.31770293,2931.4,2931.0,0.1]
[1764074696860,0.31770293,2931.3,2931.0,0.1]
[1764074697055,0.31770293,2931.2,2931.0,0.1]
[1764074697371,0.31770293,2931.1,2931.0,0.1]
[1764074698042,0.31770293,2931.1,2931.0,3.51180484]
[1764074698238,0.31770293,2931.1,2931.0,4.44760484]
[1764074698239,0.53670293,2931.1,2931.0,4.44760484]
[1764074698566,0.53670293,2931.1,2930.9,0.1]
[1764074698767,0.219,2931.1,2930.9,0.1]
[1764074699267,0.31818324,2931.0,2930.9,0.1]
[1764074699643,0.31818324,2931.0,2930.9,1.039]
[1764074700245,0.31818324,2931.0,2930.9,4.45092125]
[1764074700442,0.31818324,2931.0,2930.8,0.001]
[1764074700443,4.65048808,2931.0,2930.8,0.001]
[1764074700642,0.32238324,2930.9,2930.8,0.001]
[1764074700862,0.79738324,2930.9,2930.8,0.001]
[1764074701064,1.92848135,2930.9,2930.8,0.001]
[1764074701370,2.66391417,2930.9,2930.8,0.001]
[1764074701873,0.405504,2930.8,2930.6,0.001]
[1764074702076,0.405504,2930.6,2930.5,0.001]
[1764074702263,5.56415187,2930.6,2930.5,0.001]
[1764074702574,6.29958469,2930.6,2930.5,0.001]
[1764074703274,0.405504,2930.4,2930.1,0.001]
[1764074703440,0.418404,2930.2,2930.1,0.001]
[1764074703648,0.33108324,2930.2,2930.1,0.001]
[1764074703979,0.53718324,2930.2,2930.1,0.001]
[1764074704182,0.31818324,2930.2,2930.1,0.001]
[1764074704382,0.31818324,2930.2,2930.1,4.5693528]
[1764074704383,0.53718324,2930.2,2930.1,4.5693528]
[1764074704582,0.53718324,2930.2,2930.1,0.5767]
[1764074705084,0.53718324,2930.2,2930.1,4.5693528]
[1764074705385,0.31818324,2930.2,2930.1,4.50348132]
[1764074705551,0.219,2930.2,2930.1,4.5693528]
[1764074705754,0.219,2930.2,2930.1,0.6767]
[1764074706070,0.002,2931.1,2930.1,7.91633412]
[1764074706273,0.53766324,2931.0,2930.7,3.41215409]
[1764074706481,0.31866324,2930.9,2930.5,3.41234237]
[1764074706676,0.31866324,2930.9,2930.3,3.41258997]
[1764074706677,0.31866324,2930.8,2930.3,3.51261986]
[1764074706851,0.31866324,2930.7,2930.6,0.1]
[1764074707055,0.53766324,2930.7,2930.6,1.039]
[1764074707362,0.53766324,2930.7,2930.3,6.82523972]
[1764074707569,0.31863863,2930.6,2930.3,6.82523972]
[1764074707769,0.219,2930.7,2930.2,0.1]
[1764074707972,0.31866071,2930.6,2930.1,0.001]
[1764074708152,0.31866071,2930.5,2930.1,0.1175]
[1764074708356,0.219,2930.7,2930.2,0.1]
[1764074708357,0.31866071,2930.4,2930.2,0.1]
[1764074708555,0.31866071,2930.3,2930.1,0.001]
[1764074708754,0.31870055,2930.2,2930.1,0.001]
[1764074709152,0.31870055,2930.2,2930.1,0.1175]
[1764074709385,0.219,2930.2,2930.1,4.4693528]
[1764074709550,0.219,2930.2,2930.1,3.4138528]
[1764074709755,0.002,2931.1,2930.1,4.5693528]
[1764074709974,0.53764675,2931.0,2930.7,0.1]
[1764074710185,0.31864675,2930.9,2930.4,0.1]
[1764074710356,0.219,2931.0,2930.4,3.51247927]
[1764074710357,0.31864675,2930.8,2930.4,3.51247927]
[1764074710560,0.31864675,2930.7,2930.4,3.41247927]
[1764074710874,0.53764675,2930.6,2930.2,0.4798]
[1764074711072,0.31864675,2930.5,2930.4,0.1]
[1764074711272,0.219,2930.5,2930.4,0.1]
[1764074711508,0.219,2930.5,2930.2,0.72559411]
[1764074711801,0.219,2930.5,2930.2,0.1]
[1764074712247,0.0012,2931.1,2930.5,0.1]
[1764074712376,0.53785202,2931.0,2930.6,6.82454104]
[1764074712575,0.31885202,2930.9,2930.5,3.51233529]
[1764074712776,0.31885202,2930.9,2930.0,3.41394441]
[1764074712777,0.79385202,2930.8,2930.2,0.1]
[1764074713077,0.31885202,2930.7,2930.1,3.51384589]
[1764074713300,0.31885202,2930.6,2930.1,6.94319869]
[1764074713502,0.31885202,2930.5,2930.4,0.1]
[1764074714013,0.0012,2931.1,2930.7,0.1]
[1764074714216,0.53794699,2931.0,2930.7,0.1]
[1764074714514,0.31894699,2930.9,2930.8,3.41203766]
[1764074714714,0.31894699,2930.9,2930.7,0.1]
[1764074714917,0.76324699,2930.8,2930.2,3.41264202]
[1764074715218,0.31894699,2930.7,2930.1,3.6303449]
[1764074715437,0.31894699,2930.6,2930.2,0.1165]
[1764074715736,0.53794699,2930.5,2930.4,0.1]
[1764074716452,0.53794699,2930.5,2930.1,0.101]
[1764074716746,0.31894699,2930.4,2930.1,6.92667097]
[1764074716934,0.31894699,2930.4,2930.1,7.04317097]
[1764074717131,0.31894699,2930.4,2930.1,0.001]
[1764074717334,0.4443,2930.2,2930.1,0.001]
[1764074717842,0.694,2930.5,2930.1,0.001]
[1764074718147,0.31916513,2930.4,2930.1,0.001]
[1764074718445,0.219,2930.3,2930.2,0.1]
[1764074718848,0.475,2930.9,2930.2,0.4592]
[1764074719085,0.53814693,2930.8,2930.4,0.1]
[1764074719209,0.31914693,2930.7,2930.4,0.1]
[1764074719410,0.0012,2931.1,2930.4,0.1]
[1764074719411,0.31914693,2930.6,2930.4,0.1]
[1764074719638,0.219,2930.5,2930.4,0.1]
[1764074720410,0.219,2930.5,2930.4,3.96860341]
[1764074720848,0.219,2930.5,2930.4,0.5561]
[1764074721053,0.219,2930.5,2930.4,4.44830341]
[1764074721412,0.002,2930.7,2930.4,4.38242844]
[1764074721754,0.002,2930.7,2930.6,0.5561]
[1764074722050,0.221,2930.7,2930.6,0.1]
[1764074722611,0.221,2930.7,2930.6,4.44807052]
[1764074723061,0.221,2930.7,2930.6,3.96837052]
[1764074723277,0.221,2930.7,2930.6,0.1]
[1764074723663,0.221,2930.7,2930.5,3.51236835]
[1764074724269,0.221,2930.7,2930.4,3.51249751]
[1764074724782,0.4492,2930.5,2930.1,3.51384579]
[1764074724986,0.4701,2930.6,2930.1,0.101]
[1764074725140,0.0045,2930.2,2930.1,0.001]
[1764074725968,0.4746,2930.2,2930.1,0.001]
[1764074726169,0.79384042,2930.2,2930.1,0.001]
[1764074726621,0.53824042,2930.2,2930.1,0.001]
[1764074726752,0.31924042,2930.2,2930.1,0.001]
[1764074727076,0.53824042,2930.2,2930.1,0.001]
[1764074727896,1.45734042,2930.2,2930.1,0.001]
[1764074728375,0.98744042,2930.2,2930.1,0.001]
[1764074728737,4.87007675,2930.2,2930.1,0.001]
[1764074730592,0.98744042,2930.2,2930.1,0.001]
[1764074730942,0.53824042,2930.2,2930.1,0.001]
[1764074731565,3.95097675,2930.2,2930.1,0.001]
[1764074731841,4.87007675,2930.2,2930.1,0.001]
[1764074732658,1.23834042,2930.2,2930.1,0.001]
[1764074732985,0.98764042,2930.2,2930.1,0.001]
[1764074733192,0.31924042,2930.2,2930.1,0.001]
[1764074733363,0.219,2930.2,2930.1,0.001]
[1764074733871,0.002,2930.7,2930.2,0.1]
[1764074734094,0.31925492,2930.6,2930.2,0.1]
[1764074734304,0.002,2930.7,2930.5,0.1]
[1764074734511,0.002,2930.7,2930.6,0.9358]
[1764074734812,0.221,2930.7,2930.6,0.4561]
[1764074734989,0.54024836,2930.7,2930.6,3.86837052]
[1764074735192,0.54024836,2930.7,2930.6,0.4561]
[1764074735385,0.54024836,2930.7,2930.1,0.2881]
[1764074735583,0.221,2930.7,2930.6,0.1]
[1764074735925,0.221,2930.7,2930.6,0.5561]
[1764074736217,0.2202,2930.7,2930.6,1.441304]
[1764074736618,0.2202,2930.7,2930.6,5.57916863]
[1764074736921,0.002,2931.0,2930.6,5.57916863]
[1764074736922,0.002,2931.0,2930.9,0.405504]
[1764074737215,0.002,2931.0,2930.9,0.961604]
[1764074737419,0.002,2931.0,2930.9,1.441304]
[1764074737605,0.002,2931.3,2931.1,0.4561]
[1764074737792,0.002,2931.3,2931.2,0.961604]
[1764074738013,0.002,2931.3,2931.2,1.0358]
[1764074738551,0.002,2931.3,2931.2,1.441304]
[1764074738835,0.002,2931.3,2931.2,5.17296616]
[1764074739808,0.002,2931.3,2931.2,4.69326616]
[1764074740537,1.84369807,2931.3,2930.5,0.001]
[1764074740701,1.20913606,2931.2,2930.5,0.001]
[1764074740902,0.22,2931.1,2930.5,0.001]
[1764074741108,3.41345736,2931.3,2930.9,0.09747688]
[1764074741351,3.41345736,2931.3,2930.5,0.001]
[1764074741352,0.4896,2930.6,2930.5,0.001]
[1764074741502,0.22,2931.0,2930.5,0.001]
[1764074741708,0.22,2930.9,2930.8,0.09747688]
[1764074743132,0.22,2930.9,2930.8,3.50951454]
[1764074743737,0.002,2931.3,2930.8,7.75987532]
[1764074743911,0.002,2931.3,2931.2,0.71447688]
[1764074744115,0.222,2931.3,2931.2,1.19417688]
[1764074744517,0.222,2931.3,2931.2,0.71447688]
[1764074744713,0.222,2931.3,2931.2,4.85164304]
[1764074745034,0.222,2931.3,2931.2,1.44007099]
[1764074745204,0.222,2931.3,2931.2,0.82307099]
[1764074745404,0.222,2931.3,2931.2,0.09747688]
[1764074745610,0.222,2931.3,2931.2,3.50904893]
[1764074746122,0.222,2931.3,2931.2,0.09747688]
[1764074746328,0.222,2931.3,2931.2,3.50904893]
[1764074746523,0.222,2931.3,2931.2,3.96514893]
[1764074746524,0.002,2931.3,2931.2,3.96514893]
[1764074746719,0.222,2931.3,2931.2,4.44484893]
[1764074747212,0.222,2931.3,2931.2,3.86767205]
[1764074747404,0.222,2931.3,2931.2,3.96514893]
[1764074748139,0.002,2931.3,2931.2,8.58786446]
[1764074748336,0.002,2931.3,2931.2,5.47847016]
[1764074748536,0.002,2931.3,2931.2,5.57594704]
[1764074749153,0.002,2931.3,2931.2,5.17044304]
[1764074749846,0.002,2931.3,2931.2,5.57594704]
[1764074751042,0.002,2931.3,2931.2,5.17044304]
[1764074751546,0.002,2931.3,2931.2,4.69074304]
[1764074752534,0.002,2931.3,2931.2,5.14814304]
[1764074752939,0.221,2931.3,2931.2,5.14814304]
[1764074753425,0.221,2931.3,2931.2,4.69074304]
[1764074753622,0.002,2931.3,2931.2,4.59876616]
[1764074753841,0.222,2931.3,2931.2,4.23464304]
[1764074754154,0.222,2931.3,2931.2,0.09747688]
[1764074754331,0.6828,2931.3,2931.2,0.09747688]
[1764074754656,7.99431617,2931.3,2930.5,0.001]
[1764074754828,0.4608,2930.6,2930.5,0.001]
[1764074755228,3.9002713,2931.2,2930.5,0.09847688]
[1764074755229,0.4886,2931.2,2930.5,0.09847688]
[1764074755428,0.222,2931.3,2930.7,0.09747688]
[1764074755429,0.4886,2931.1,2930.7,0.09747688]
[1764074755637,0.4886,2931.1,2930.8,0.09747688]
[1764074755638,0.22,2931.0,2930.8,0.09747688]
[1764074756020,0.9494,2930.9,2930.6,0.09747688]
[1764074756247,0.22,2930.8,2930.7,0.09747688]
[1764074756951,0.22,2930.8,2930.7,3.50963097]
[1764074757153,0.22,2930.8,2930.7,0.09747688]
[1764074757449,0.22,2930.8,2930.6,3.5107474]
[1764074757649,0.22,2930.8,2930.6,6.92301792]
[1764074758036,0.4906,2931.3,2930.7,0.4538]
[1764074758037,0.002,2931.3,2930.7,0.4538]
[1764074758238,0.22,2931.2,2931.1,0.09747688]
[1764074758853,0.22,2931.2,2931.1,3.50916532]
[1764074759251,0.22,2931.2,2931.1,0.09747688]
[1764074760159,0.2192,2931.2,2930.8,0.72559411]
[1764074760463,0.2192,2931.2,2931.1,0.09747688]
[1764074760832,0.002,2931.3,2931.2,3.50904893]
[1764074761037,0.002,2931.3,2931.2,3.96284893]
[1764074761238,0.222,2931.3,2931.2,4.42524893]
[1764074761473,0.222,2931.3,2930.5,3.92633347]
[1764074761637,0.222,2931.3,2931.1,0.09747688]
[1764074762248,0.002,2931.3,2931.2,0.09747688]
[1764074762455,0.002,2931.3,2930.6,0.001]
[1764074762456,0.4826,2931.2,2930.6,0.001]
[1764074762767,0.4826,2931.2,2930.6,6.82551739]
[1764074762967,0.4826,2931.2,2930.8,0.09747688]
[1764074763269,0.22,2931.1,2930.8,0.09747688]
[1764074763476,0.4826,2930.9,2930.6,3.51068702]
[1764074763663,0.9756,2930.9,2930.6,0.09847688]
[1764074763965,0.9756,2930.9,2930.6,3.51071585]
[1764074764272,0.4826,2930.9,2930.6,3.51071585]
[1764074765156,0.4826,2930.9,2930.6,3.51072617]
[1764074765369,0.4826,2930.9,2930.6,0.09847688]
[1764074765671,0.9756,2930.9,2930.6,0.09847688]
[1764074765847,0.9756,2930.9,2930.6,3.51073952]
[1764074766676,0.4826,2930.9,2930.6,0.09847688]
[1764074766970,0.9756,2930.9,2930.6,3.51072731]
[1764074767167,0.9756,2930.9,2930.6,3.41325043]
[1764074767364,0.4826,2930.9,2930.6,3.41325043]
[1764074767571,0.22,2931.1,2930.8,0.09747688]
[1764074767867,0.713,2931.1,2930.8,0.09747688]
[1764074768081,0.4826,2930.9,2930.6,0.001]
[1764074768386,0.1454,2930.7,2930.6,0.001]
[1764074768753,0.6384,2930.7,2930.6,0.001]
[1764074769155,0.95720748,2930.7,2930.6,0.001]
[1764074769468,4.36936157,2930.7,2930.6,0.001]
[1764074770591,0.46420748,2930.7,2930.6,0.001]
[1764074770791,0.493,2931.2,2930.6,0.001]
[1764074770983,0.5376168,2931.1,2930.6,0.001]
[1764074771178,0.4826,2930.7,2930.6,0.001]
[1764074771580,0.9756,2930.7,2930.6,0.001]
[1764074771779,0.712,2931.1,2930.6,0.001]
[1764074771961,0.31859124,2931.0,2930.6,0.09847688]
[1764074772160,0.81159124,2931.0,2930.6,0.001]
[1764074772459,0.219,2930.9,2930.6,0.09847688]
[1764074772687,0.002,2931.3,2930.9,0.09747688]
[1764074772859,0.219,2931.2,2930.9,0.09747688]
[1764074773060,0.712,2931.2,2930.9,0.09747688]
[1764074773472,0.4826,2931.0,2930.9,0.09747688]
[1764074773670,0.4826,2931.0,2930.6,0.001]
[1764074773991,0.1454,2930.7,2930.6,0.001]
[1764074774167,0.3644,2930.7,2930.6,0.001]
[1764074774367,1.17597516,2930.7,2930.6,0.001]
[1764074774563,0.68297516,2930.7,2930.6,0.001]
[1764074774774,1.17597516,2930.7,2930.6,0.001]
[1764074775366,4.58812925,2930.7,2930.6,0.001]
[1764074776878,1.17597516,2930.7,2930.6,0.001]
[1764074777282,4.58812925,2930.7,2930.6,0.001]
[1764074778504,0.46397516,2930.7,2930.6,0.001]
[1764074778692,0.8574,2930.7,2930.6,0.001]
[1764074778896,4.58812925,2930.7,2930.6,0.001]
[1764074780766,5.71922736,2930.7,2930.6,0.001]
[1764074781703,6.45365285,2930.7,2930.6,0.001]
[1764074782115,0.405504,2930.5,2930.3,0.001]
[1764074782405,4.41360863,2930.4,2930.3,0.001]
[1764074782581,1.69740065,2930.4,2930.3,0.001]
[1764074782903,2.32191337,2930.4,2930.3,0.001]
[1764074783293,1.91646296,2930.4,2930.3,0.001]
[1764074783480,1.18197516,2930.4,2930.3,0.001]
[1764074784233,5.31927268,2930.4,2930.3,0.001]
[1764074785606,5.72477668,2930.4,2930.3,0.001]
[1764074785811,6.45910157,2930.4,2930.3,0.001]
[1764074786808,6.45910157,2930.4,2930.2,0.001]
[1764074786809,13.79693845,2930.4,2930.2,0.001]
[1764074787007,2.00090005,2930.3,2930.2,0.001]
[1764074787512,2.72649416,2930.3,2930.2,0.001]
[1764074787729,2.72649416,2930.3,2929.5,0.001]
[1764074787730,1.13109811,2930.0,2929.5,0.001]
[1764074787933,1.85150405,2930.0,2929.5,0.001]
[1764074788091,2.19320005,2929.9,2929.5,0.001]
[1764074788287,4.87196093,2929.9,2929.5,0.001]
[1764074788525,5.49646493,2929.9,2929.5,0.001]
[1764074790023,4.87196093,2929.9,2929.5,0.001]
[1764074790328,5.09096093,2929.9,2929.5,0.001]
[1764074790545,4.87196093,2929.9,2929.5,0.001]
[1764074791044,5.09096093,2929.9,2929.5,0.001]
[1764074791220,5.81655504,2929.9,2929.5,0.001]
[1764074791415,5.81655504,2929.9,2929.8,0.463]
[1764074791416,0.31857516,2929.9,2929.8,0.463]
[1764074791638,0.6954,2929.9,2929.8,0.001]
[1764074791844,1.48867516,2929.9,2929.8,0.001]
[1764074792553,4.90176093,2929.9,2929.8,0.001]
[1764074792908,6.03285904,2929.9,2929.8,0.001]
[1764074793111,0.31857516,2929.9,2929.8,0.001]
[1764074793345,0.4747,2930.8,2929.8,0.463]
[1764074793511,1.26293786,2930.7,2929.8,0.001]
[1764074793706,0.31834375,2930.6,2929.8,0.001]
[1764074793926,0.31834375,2930.5,2929.8,0.001]
[1764074794287,0.72384775,2930.4,2929.8,0.001]
[1764074794460,7.36258347,2930.3,2929.8,0.001]
[1764074794743,0.31834375,2930.2,2929.8,0.001]
[1764074795338,1.51863786,2930.2,2929.8,0.001]
[1764074795543,0.4764,2929.9,2929.8,0.001]
[1764074795741,0.6954,2929.9,2929.8,0.001]
[1764074795941,1.01374375,2929.9,2929.8,0.001]
[1764074796348,0.53734375,2929.9,2929.8,0.001]
[1764074796946,0.002,2930.5,2929.8,1.01517688]
[1764074797141,0.219,2930.4,2930.1,0.462]
[1764074797341,0.53751255,2930.4,2929.8,0.55317688]
[1764074797643,0.31851255,2930.3,2929.8,0.001]
[1764074798110,0.4747,2930.2,2929.8,0.001]
[1764074798318,0.31851255,2930.1,2929.8,0.001]
[1764074798535,0.4764,2929.9,2929.8,0.001]
[1764074798745,0.219,2930.0,2929.8,0.001]
[1764074798945,0.72559411,2930.4,2929.9,0.462]
[1764074799147,0.318673,2930.3,2930.0,0.09747688]
[1764074799454,0.219,2930.2,2930.0,0.09747688]
[1764074799655,0.002,2930.5,2930.1,0.6418]
[1764074799813,0.002,2930.5,2930.4,0.462]
[1764074800123,0.221,2930.5,2930.4,0.55947688]
[1764074800513,0.002,2930.5,2930.4,0.55947688]
[1764074800718,0.221,2930.5,2930.4,0.55947688]
[1764074801048,0.221,2930.5,2930.1,0.6418]
[1764074801049,0.221,2930.5,2930.1,4.05459506]
[1764074801268,0.221,2930.5,2930.1,0.28457688]
[1764074801729,0.221,2930.5,2930.1,0.1871]
[1764074801730,0.31866938,2930.4,2930.1,0.1871]
[1764074802661,0.31866938,2930.4,2930.3,0.462]
[1764074802861,0.002,2930.5,2930.4,3.41250341]
[1764074803080,0.221,2930.5,2930.4,4.42668029]
[1764074803363,0.221,2930.5,2930.4,0.55947688]
[1764074803668,0.221,2930.5,2930.2,0.09747688]
[1764074804055,0.221,2930.5,2930.4,0.462]
[1764074805270,0.002,2930.5,2930.4,3.87450341]
[1764074805448,0.221,2930.5,2930.4,3.87450341]
[1764074805849,0.221,2930.5,2930.4,0.462]
[1764074807163,0.221,2930.5,2930.1,0.28457688]
[1764074807348,0.221,2930.5,2929.9,3.41308577]
[1764074807552,0.31880063,2930.4,2929.9,3.41308577]
[1764074807951,0.79350063,2930.4,2929.8,0.001]
[1764074808273,0.31881836,2930.3,2929.8,0.001]
[1764074808874,0.219,2930.2,2929.8,0.001]
[1764074809075,0.31881836,2930.1,2929.8,0.001]
[1764074809595,0.31881836,2930.1,2929.8,0.55317688]
[1764074809973,0.002,2930.5,2930.0,0.462]
[1764074810173,0.002,2930.5,2930.4,0.6483]
[1764074810501,0.002,2930.5,2929.8,0.4557]
[1764074810502,0.221,2930.5,2930.0,0.09747688]
[1764074811013,0.221,2930.5,2930.1,3.4128528]
[1764074811158,0.221,2930.5,2930.1,7.0089056]
[1764074811367,0.221,2930.5,2930.4,0.4651]
[1764074811666,0.002,2930.5,2930.4,0.4651]
[1764074812007,0.221,2930.5,2930.4,0.4651]
[1764074812305,0.221,2930.5,2930.3,0.09747688]
[1764074812882,0.002,2930.5,2930.4,3.87760341]
[1764074813114,0.221,2930.5,2930.4,0.4651]
[1764074813776,0.221,2930.5,2930.1,0.1832]
[1764074813982,0.221,2930.5,2930.2,3.41272712]
[1764074814371,0.221,2930.5,2930.1,0.1832]
[1764074814567,0.457,2930.4,2929.8,0.001]
[1764074814980,3.7314683,2930.3,2929.8,0.001]
[1764074815184,0.31877812,2930.2,2929.8,0.09847688]
[1764074815402,0.219,2930.1,2929.8,0.09847688]
[1764074815992,0.219,2930.1,2929.8,0.001]
[1764074816390,3.41255568,2930.4,2929.9,0.09747688]
[1764074816595,0.31879666,2930.3,2929.9,0.09747688]
[1764074816770,0.002,2930.5,2930.0,0.09747688]
[1764074816771,0.219,2930.2,2930.0,0.09747688]
[1764074816994,0.219,2930.2,2930.0,3.51034413]
[1764074817299,0.219,2930.2,2929.8,0.001]
[1764074817493,0.7143,2930.2,2929.8,0.001]
[1764074817921,4.127037,2930.2,2929.8,0.001]
[1764074818134,0.219,2930.2,2929.8,0.001]
[1764074818592,0.002,2930.5,2930.1,0.6402]
[1764074818797,0.002,2930.5,2930.3,0.4523]
[1764074819007,0.219,2930.4,2930.2,3.41273256]
[1764074819210,0.219,2930.4,2930.1,3.60069891]
[1764074819438,0.219,2930.4,2930.3,0.4523]
[1764074819640,0.219,2930.4,2930.2,0.09747688]
[1764074820197,0.219,2930.4,2930.1,3.60069891]
[1764074820402,0.219,2930.4,2929.9,3.41298503]
[1764074820647,0.219,2930.4,2929.9,6.92354768]
[1764074820835,0.219,2930.4,2929.9,7.39174768]
[1764074821508,0.219,2930.4,2929.9,3.51046191]
[1764074821708,3.63151088,2930.4,2929.9,3.51046191]
[1764074821918,0.219,2930.4,2929.9,3.51046191]
[1764074822295,0.219,2930.4,2929.9,6.92354768]
[1764074822496,0.219,2930.4,2930.0,0.4682]
[1764074823022,0.219,2930.4,2930.2,0.09747688]
[1764074823231,0.31940522,2930.3,2930.2,0.09747688]
[1764074823403,0.31940522,2930.3,2930.2,3.51021321]
[1764074823598,0.31940522,2930.3,2930.2,3.96251321]
[1764074823804,0.31940522,2930.3,2930.2,0.54977688]
[1764074824339,0.002,2930.5,2930.2,7.74597266]
[1764074824558,0.219,2930.3,2930.2,3.97841321]
[1764074824754,0.219,2930.3,2930.2,3.51021321]
[1764074825057,0.219,2930.3,2930.2,3.96251321]
[1764074825420,0.219,2930.3,2930.2,4.43071321]
[1764074827555,0.6727,2930.3,2930.1,0.09747688]
[1764074827852,0.31976355,2930.2,2930.1,0.1879]
[1764074828016,0.002,2930.5,2930.3,0.09747688]
[1764074828217,1.03406926,2930.4,2929.8,0.09847688]
[1764074828422,1.03406926,2930.4,2929.8,3.41420226]
[1764074828423,0.31976926,2930.3,2929.8,3.41420226]
[1764074828622,0.219,2930.4,2930.1,0.09747688]